[Event "WYCC U18 Girls 2019"]
[Site "Mumbai"]
[Date "2019.10.05"]
[Round "5.11"]
[White "Pandey Srishti"]
[Black "Makhija, Aashna"]
[Result "*"]
[ECO "A05"]
[WhiteElo "1963"]
[BlackElo "2084"]
[Annotator "NA"]
[PlyCount "82"]
[EventDate "2019.10.02"]
[EventType "swiss"]
[EventCountry "IND"]
[SourceTitle "playchess.com"]
[Source "ChessBase"]
[SourceQuality "1"]
[TimeControl "40/5400+30:1800+30"]

1. Nf3 {[%emt 0:00:00]} Nf6 {[%emt 0:00:00]} 2. g3 {[%emt 0:00:00]} d5 {[%emt 0:00:04]} 3. Bg2 {[%emt 0:00:00]} e6 {[%emt 0:00:10]} 4. O-O {[%emt 0:00:00]} Be7 {[%emt 0:00:12]} 5. d3 {[%emt 0:00:00]} O-O {[%emt 0:00:51]} 6. Nbd2 {[%emt 0:00:00]} Nc6 {[%emt 0:00:29]} 7. e4 {[%emt 0:00:47]} dxe4 {[%emt 0:00:25]} 8. dxe4 {[%emt 0:00:04]} e5 {[%emt 0:00:27]} 9. c3 {[%emt 0:00:18]} a5 {[%emt 0:01:20] A07: Réti Opening: New York and Capablanca Systems} 10. Qe2 {[%emt 0:01:17]} Bc5 {[%emt 0:03:20]} 11. Nc4 {[%emt 0:04:52]} Qe7 {[%emt 0:01:34]} 12. Bg5 {[%emt 0:03:23]} h6 {[%emt 0:02:46]} 13. Bxf6 {[%emt 0:00:40]} Qxf6 {[%emt 0:00:19]} 14. Ne3 {[%emt 0:00:27] [#]} Bxe3 $146 {[%emt 0:15:17]} ({Predecessor:} 14... Ne7 15. Rfd1 c6 16. a4 b6 17. Nc4 {0-1 (42) Van Wely,L (2632)-Ganguly,S (2652) Berlin 2015}) 15. fxe3 {[%emt 0:01:27]} Qe7 {[%emt 0:12:03]} 16. Rad1 {[%emt 0:09:10]} Bd7 {[%emt 0:12:36]} 17. Rd2 {[%emt 0:09:38]} Rad8 {[%emt 0:10:04]} 18. Rfd1 {[%emt 0:02:27]} Bc8 {[%emt 0:10:51]} 19. Qb5 {[%emt 0:01:58]} Rxd2 {[%emt 0:03:38]} 20. Rxd2 {[%emt 0:00:07]} Qf6 {[%emt 0:02:01]} 21. a3 {[%emt 0:08:21]} b6 {[%emt 0:01:48]} 22. Rd5 {[%emt 0:03:39]} Bg4 $15 {[%emt 0:05:15]} 23. Qf1 {[%emt 0:04:21]} Ne7 {[%emt 0:02:31]} 24. Rd2 {[%emt 0:02:52]} Nc8 {[%emt 0:00:55]} 25. Rd5 {[%emt 0:12:57]} c6 {[%emt 0:03:20]} 26. Rd3 {[%emt 0:00:58]} Nd6 {[%emt 0:02:11]} 27. Nd2 {[%emt 0:02:32]} Qe7 {[%emt 0:02:06]} 28. Qe1 {[%emt 0:04:03]} a4 {[%emt 0:03:20]} 29. c4 {[%emt 0:06:03]} Be6 {[%emt 0:01:25]} 30. Qc1 {[%emt 0:00:38]} Nb7 {[%emt 0:00:58]} 31. b4 {[%emt 0:00:47]} axb3 {[%emt 0:00:37]} 32. Rxb3 {[%emt 0:00:05]} Na5 {[%emt 0:01:37]} 33. Rb4 {[%emt 0:01:15]} Qc5 {[%emt 0:00:40]} 34. Qc3 {[%emt 0:00:24]} b5 {[%emt 0:00:55]} 35. Bf1 {[%emt 0:00:45]} Rd8 {[%emt 0:00:35]} 36. Kf2 {[%emt 0:01:19]} bxc4 {[%emt 0:00:37]} 37. Ra4 {[%emt 0:01:11]} Nb7 {[%emt 0:00:36]} 38. Nxc4 {[%emt 0:00:09]} f6 {[%emt 0:00:30]} 39. Qb4 {[%emt 0:00:37]} Qxb4 {[%emt 0:00:32]} 40. axb4 {[%emt 0:00:09]} Bxc4 {[%emt 0:00:30]} 41. Bxc4+ {[%emt 0:30:01]} Kh7 {[%emt 0:02:48]} *

[Event "WYCC U18 Girls 2019"]
[Site "Mumbai"]
[Date "2019.10.05"]
[Round "5.12"]
[White "Nestorovic, Katarina"]
[Black "Azali, Tannaz"]
[Result "0-1"]
[ECO "B48"]
[WhiteElo "2073"]
[BlackElo "2022"]
[Annotator "NA RC"]
[PlyCount "146"]
[EventDate "2019.10.02"]
[EventType "swiss"]
[EventCountry "IND"]
[SourceTitle "playchess.com"]
[Source "ChessBase"]
[SourceQuality "1"]
[TimeControl "40/5400+30:1800+30"]

1. e4 c5 2. Nf3 e6 3. d4 cxd4 4. Nxd4 Nc6 5. Nc3 Qc7 6. Be3 a6 7. a3 Nf6 8. Be2 Be7 9. O-O O-O 10. Kh1 d6 11. f4 Na5 12. Qe1 Nc4 13. Bc1 {B48: Sicilian: Taimanov: 5 Nc3 Qc7 6 Be3 a6 without Be2} b5 14. b3 Nb6 15. Bd3 $146 ({Predecessor:} 15. Bb2 Bb7 16. Qg3 Rfe8 17. Bd3 Bf8 18. Nf3 Nbd7 19. b4 g6 20. Rae1 Bg7 {1-0 (46) Kalezic,B (2446)-Djukic,N (2450) Bijelo Polje 2004}) 15... Nfd7 16. Bb2 Bb7 17. Rf3 Bf6 18. Qe3 Qc5 19. Nce2 e5 20. b4 $19 ({Better is} 20. fxe5 $15 dxe5 21. Nf5) 20... exd4 21. bxc5 dxe3 22. Bxf6 dxc5 23. Bxg7 Kxg7 24. c3 c4 25. Bc2 Nc5 26. Rxe3 Nd3 27. Nd4 Bxe4 28. Rxe4 Nf2+ 29. Kg1 Nxe4 30. Bxe4 Ra7 31. Re1 Na4 32. Re3 Re8 33. Rg3+ Kf6 34. Nc6 Rd7 35. Ne5 Rd1+ 36. Kf2 Red8 37. Rg5 Nxc3 38. Bxh7 R8d2+ 39. Kg3 Ne2+ 40. Kg4 Nd4 41. Be4 c3 42. Rh5 c2 43. Rh6+ Kg7 44. Rh7+ Kg8 45. Rxf7 Rxg2+ 46. Bxg2 c1=Q 47. Bd5 Rg1+ 48. Kh5 Qc5 49. Rd7+ Kf8 50. Rd8+ Ke7 51. Rd7+ Ke8 52. Bf7+ Kf8 53. Rd8+ Ke7 54. Rd7+ Kf6 55. Bd5 Rg5+ 56. fxg5+ Kxe5 57. Bb7 Ke6 58. Rh7 a5 59. Rh6+ Ke5 60. Rf6 Qc7 61. Ba8 b4 62. axb4 axb4 63. Rf1 Qc3 64. h4 Nf5 65. Kg6 Nxh4+ 66. Kg7 Qg3 67. Kh6 Nf5+ 68. Kg6 Ne7+ 69. Kf7 Qxg5 70. Re1+ Kd6 71. Rd1+ Kc7 72. Bf3 Qf4+ 73. Kxe7 Qxf3 0-1

[Event "WYCC U18 Girls 2019"]
[Site "Mumbai"]
[Date "2019.10.05"]
[Round "5.13"]
[White "Priyanka, Kumari"]
[Black "Jyothsna L"]
[Result "*"]
[ECO "B06"]
[WhiteElo "1921"]
[BlackElo "1995"]
[Annotator "NA"]
[PlyCount "55"]
[EventDate "2019.10.02"]
[EventType "swiss"]
[EventCountry "IND"]
[SourceTitle "playchess.com"]
[Source "ChessBase"]
[SourceQuality "1"]
[TimeControl "40/5400+30:1800+30"]

1. e4 {[%emt 0:00:10]} g6 {[%emt 0:01:20]} 2. d4 {[%emt 0:00:27]} Bg7 {[%emt 0:00:02]} 3. Nc3 {[%emt 0:00:15]} d5 {[%emt 0:00:03]} 4. Nf3 {[%emt 0:07:12]} dxe4 {[%emt 0:12:42]} 5. Nxe4 {[%emt 0:00:33]} Nf6 {[%emt 0:01:38]} 6. Nxf6+ {[%emt 0:02:55]} Bxf6 {[%emt 0:00:20]} 7. Bc4 {[%emt 0:04:27]} c6 {[%emt 0:08:39]} 8. O-O {[%emt 0:04:18]} Bg4 {[%emt 0:16:52]} 9. c3 {[%emt 0:03:45]} Bxf3 {[%emt 0:05:07]} 10. Qxf3 {[%emt 0:01:15]} O-O {[%emt 0:02:29]} 11. Bf4 {[%emt 0:04:46]} Nd7 {[%emt 0:08:50]} 12. Rad1 {[%emt 0:05:59]} e6 {[%emt 0:02:23]} 13. Rfe1 {[%emt 0:12:21]} Re8 {[%emt 0:05:38]} 14. a4 {[%emt 0:06:58]} Nb6 {[%emt 0:03:15]} 15. Bb3 {[%emt 0:00:24]} Bg7 $14 {[%emt 0:01:58]} 16. a5 {[%emt 0:12:03]} Nd5 {[%emt 0:02:24]} 17. Bd2 {[%emt 0:04:20]} b5 {[%emt 0:06:53]} 18. Bc2 {[%emt 0:07:47]} Qd7 {[%emt 0:05:49]} 19. b3 {[%emt 0:02:31]} a6 {[%emt 0:00:51]} 20. h4 {[%emt 0:09:45]} h5 {[%emt 0:00:47]} 21. Be4 {[%emt 0:00:58]} Rac8 {[%emt 0:02:54]} 22. Bg5 {[%emt 0:00:57]} b4 {[%emt 0:05:15]} 23. c4 {[%emt 0:05:15]} Nc3 {[%emt 0:00:34]} 24. Rd2 {[%emt 0:00:20]} f5 {[%emt 0:02:29]} 25. Bc2 {[%emt 0:00:42]} Kf7 {[%emt 0:01:30]} 26. Qf4 {[%emt 0:01:08]} Qc7 {[%emt 0:00:53]} 27. Qxc7+ {[%emt 0:01:13]} Rxc7 {[%emt 0:00:03]} 28. Bd1 {[%emt 0:00:32]} *

[Event "WYCC U18 Girls 2019"]
[Site "Mumbai"]
[Date "2019.10.05"]
[Round "5.14"]
[White "Zeliantsova, Kseniya"]
[Black "Tanishka Kotia"]
[Result "*"]
[ECO "B31"]
[WhiteElo "1994"]
[BlackElo "2090"]
[Annotator "NA"]
[PlyCount "60"]
[EventDate "2019.10.02"]
[EventType "swiss"]
[EventCountry "IND"]
[SourceTitle "playchess.com"]
[Source "ChessBase"]
[SourceQuality "1"]
[TimeControl "40/5400+30:1800+30"]

1. e4 c5 2. Nf3 Nc6 3. Bb5 g6 4. O-O Bg7 5. Re1 Nf6 6. c3 O-O 7. h3 a6 8. Bxc6 dxc6 9. d4 {B31: Sicilian: 2...Nc6 3 Bb5 g6} Be6 10. Nbd2 $146 ({Predecessor:} 10. Qc2 cxd4 11. cxd4 Rc8 12. Be3 Re8 13. Ng5 Qd7 14. Nd2 h6 15. Nxe6 Qxe6 16. a4 Red8 {1-0 (45) Pasko,P (2482)-Sampieri,M (2376) ICCF email 2011}) 10... cxd4 11. cxd4 Qb6 12. Qc2 Rac8 13. Nf1 c5 14. d5 Bd7 15. Ne3 e6 16. Nc4 Qa7 17. d6 Rfd8 (17... b5 $14 18. Nce5 Ne8) 18. Bg5 h6 19. Bh4 $16 g5 20. Bg3 b5 21. Nce5 Bc6 22. Rad1 Ba8 23. Ng4 Nh5 24. Bh2 f6 25. Qe2 e5 26. Ne3 Bxe4 27. Nxg5 hxg5 28. Qxh5 Rc6 29. d7 Qb8 30. h4 gxh4 *

[Event "WYCC U18 Girls 2019"]
[Site "Mumbai"]
[Date "2019.10.05"]
[Round "5.14"]
[White "Zeliantsova, Kseniya"]
[Black "Tanishka, Kotia"]
[Result "1-0"]
[ECO "B31"]
[WhiteElo "1994"]
[BlackElo "2090"]
[Annotator "NA RC"]
[PlyCount "79"]
[EventDate "2019.10.02"]
[EventType "swiss"]
[EventCountry "IND"]
[SourceTitle "playchess.com"]
[Source "ChessBase"]
[SourceQuality "1"]
[TimeControl "40/5400+30:1800+30"]

1. e4 c5 2. Nf3 Nc6 3. Bb5 g6 4. O-O Bg7 5. Re1 Nf6 6. c3 O-O 7. h3 a6 8. Bxc6 dxc6 9. d4 {B31: Sicilian: 2...Nc6 3 Bb5 g6} Be6 10. Nbd2 $146 ({Predecessor:} 10. Qc2 cxd4 11. cxd4 Rc8 12. Be3 Re8 13. Ng5 Qd7 14. Nd2 h6 15. Nxe6 Qxe6 16. a4 Red8 {1-0 (45) Pasko,P (2482)-Sampieri,M (2376) ICCF email 2011}) 10... cxd4 11. cxd4 Qb6 12. Qc2 Rac8 13. Nf1 c5 14. d5 Bd7 15. Ne3 e6 16. Nc4 Qa7 17. d6 Rfd8 (17... b5 $14 18. Nce5 Ne8) 18. Bg5 h6 19. Bh4 $16 g5 20. Bg3 b5 21. Nce5 Bc6 22. Rad1 Ba8 23. Ng4 Nh5 24. Bh2 f6 25. Qe2 e5 26. Ne3 Bxe4 27. Nxg5 hxg5 28. Qxh5 Rc6 29. d7 Qb8 30. h4 gxh4 31. Ng4 Bh7 32. Qxh4 Qc7 33. Qh5 Qb8 34. Re3 Rd6 35. Rde1 R8xd7 36. Rh3 Bf8 37. Nxe5 Re6 38. Qg4+ Kh8 39. Qxe6 Qd6 40. Nf7+ 1-0

[Event "WYCC U18 Girls 2019"]
[Site "Mumbai"]
[Date "2019.10.06"]
[Round "6.1"]
[White "Radeva, Viktoria"]
[Black "Shuvalova, Polina"]
[Result "0-1"]
[ECO "C24"]
[WhiteElo "2277"]
[BlackElo "2412"]
[Annotator "ChessBase"]
[PlyCount "114"]
[EventDate "2019.10.02"]
[EventType "swiss"]
[EventCountry "IND"]
[SourceTitle "playchess.com"]
[Source "ChessBase"]
[SourceQuality "1"]
[TimeControl "40/5400+30:1800+30"]

1. e4 {[%emt 0:00:00]} e5 {[%emt 0:00:00]} 2. Bc4 {[%emt 0:00:00]} Nf6 {[%emt 0:00:50]} 3. d3 {[%emt 0:00:00]} c6 {[%emt 0:03:28]} 4. Nf3 {[%emt 0:00:08]} d5 {[%emt 0:00:22]} 5. Bb3 {[%emt 0:00:05]} Bb4+ {[%emt 0:00:42]} 6. c3 {[%emt 0:00:24]} Bd6 {[%emt 0:00:37]} 7. exd5 {[%emt 0:00:07]} cxd5 {[%emt 0:00:52]} 8. Bg5 {[%emt 0:00:15]} Be6 {[%emt 0:01:26]} 9. O-O {[%emt 0:00:40]} Nbd7 {[%emt 0:03:47]} 10. c4 {[%emt 0:01:19]} d4 {[%emt 0:02:49]} 11. Nbd2 {[%emt 0:00:33]} O-O {[%emt 0:03:18]} 12. Re1 {[%emt 0:00:13]} Qc7 {[%emt 0:04:34]} 13. Ba4 {[%emt 0:07:27]} Nc5 {[%emt 0:08:34]} 14. Bc2 {[%emt 0:15:09]} a5 {[%emt 0:04:22]} 15. Bxf6 {[%emt 0:08:06]} gxf6 {[%emt 0:00:04]} 16. Ne4 {[%emt 0:02:26]} Be7 {[%emt 0:07:08]} 17. Nxc5 {[%emt 0:28:47]} Qxc5 {[%emt 0:01:58]} 18. Nd2 {[%emt 0:00:38]} Kh8 {[%emt 0:06:35]} 19. Qh5 {[%emt 0:02:11]} Rg8 {[%emt 0:01:44]} 20. Bd1 {[%emt 0:02:30]} Qb4 {[%emt 0:04:24]} 21. Qe2 {[%emt 0:09:53]} Qxb2 {[%emt 0:03:10]} 22. Rb1 {[%emt 0:06:28]} Qxa2 {[%emt 0:01:27]} 23. Bb3 {[%emt 0:00:19]} Qa3 {[%emt 0:00:48]} 24. Ne4 {[%emt 0:00:33]} Bd8 {[%emt 0:03:57]} 25. Bc2 {[%emt 0:03:54]} Qe7 {[%emt 0:00:42]} 26. Ba4 {[%emt 0:02:06]} b6 {[%emt 0:06:22]} 27. Bc6 {[%emt 0:02:51]} Rc8 {[%emt 0:02:44]} 28. Bb5 {[%emt 0:00:06]} Bc7 {[%emt 0:00:44]} 29. Ng3 f5 {[%emt 0:01:29]} 30. Bc6 {[%emt 0:04:15]} Rg6 {[%emt 0:03:20]} 31. Rb5 {[%emt 0:02:32]} f4 {[%emt 0:03:01]} 32. Be4 {[%emt 0:00:45]} Rg5 {[%emt 0:02:46]} 33. Nf1 {[%emt 0:00:33]} Rcg8 {[%emt 0:00:09]} 34. g3 {[%emt 0:00:43]} Bd7 {[%emt 0:05:02]} 35. Rb2 {[%emt 0:00:27]} a4 {[%emt 0:00:18]} 36. Qd1 {[%emt 0:01:00]} a3 {[%emt 0:00:33]} 37. Ra2 {[%emt 0:00:08]} Bd6 {[%emt 0:03:00]} 38. Nd2 Bb4 {[%emt 0:02:34]} 39. Bg2 {[%emt 0:01:03]} Bg4 {[%emt 0:02:49]} 40. Qc2 {[%emt 0:00:20]} h5 {[%emt 0:02:30]} 41. Rb1 {[%emt 0:03:16]} fxg3 {[%emt 0:03:44]} 42. hxg3 {[%emt 0:01:00]} h4 {[%emt 0:01:56]} 43. Ne4 {[%emt 0:01:42]} R5g6 {[%emt 0:00:20]} 44. Qb3 {[%emt 0:01:10]} Bc5 {[%emt 0:00:21]} 45. Nxc5 {[%emt 0:00:39]} bxc5 {[%emt 0:00:16]} 46. Qxa3 {[%emt 0:01:12]} hxg3 {[%emt 0:05:48]} 47. fxg3 {[%emt 0:00:18]} Be6 {[%emt 0:02:19]} 48. Qc1 {[%emt 0:03:30]} Qf6 {[%emt 0:05:23]} 49. Rf2 {[%emt 0:02:09]} Qg5 {[%emt 0:00:27]} 50. Qd1 {[%emt 0:03:52]} Qxg3 {[%emt 0:01:07]} 51. Qh5+ {[%emt 0:03:44]} Kg7 {[%emt 0:00:04]} 52. Rb7 {[%emt 0:00:48]} Qe3 {[%emt 0:01:10]} 53. Rb1 {[%emt 0:09:12]} Bd7 {[%emt 0:04:02]} 54. Rbf1 {[%emt 0:02:49]} Rxg2+ {[%emt 0:03:55]} 55. Kxg2 {[%emt 0:00:05]} Kf8+ {[%emt 0:00:13]} 56. Kh1 {[%emt 0:02:02]} Bc6+ {[%emt 0:00:08]} 57. Rg2 {[%emt 0:01:30]} Bxg2+ {[%emt 0:00:13]} 0-1

[Event "WYCC U18 Girls 2019"]
[Site "Mumbai"]
[Date "2019.10.06"]
[Round "6.2"]
[White "Afonasieva, Anna"]
[Black "Muetsch, Annmarie"]
[Result "1-0"]
[ECO "E62"]
[WhiteElo "2312"]
[BlackElo "2266"]
[Annotator "NA"]
[PlyCount "102"]
[EventDate "2019.10.02"]
[EventType "swiss"]
[EventCountry "IND"]
[SourceTitle "playchess.com"]
[Source "ChessBase"]
[SourceQuality "1"]
[TimeControl "40/5400+30:1800+30"]

1. d4 {[%emt 0:00:00]} Nf6 {[%emt 0:00:00]} 2. Nf3 {[%emt 0:00:00]} g6 {[%emt 0:00:00]} 3. c4 {[%emt 0:00:00]} Bg7 {[%emt 0:00:00]} 4. g3 {[%emt 0:00:00]} O-O {[%emt 0:00:00]} 5. Bg2 {[%emt 0:00:00]} d6 {[%emt 0:00:19]} 6. O-O {[%emt 0:00:00]} Nc6 {[%emt 0:00:08]} 7. Nc3 {[%emt 0:00:00]} e5 {[%emt 0:00:11]} 8. dxe5 {[%emt 0:01:11]} Nxe5 {[%emt 0:00:17]} 9. Nxe5 {[%emt 0:04:18]} dxe5 {[%emt 0:00:07]} 10. Qxd8 {[%emt 0:00:31]} Rxd8 {[%emt 0:00:06]} 11. Bg5 {[%emt 0:00:20]} Rd4 {[%emt 0:00:09] E62: King's Indian: Fianchetto: 6...c6 and Panno Variation (6...Nc6) without ...a6} 12. Rfd1 {[%emt 0:10:40]} (12. b3 c6 13. Na4 Bf5 14. Nc5 Rb8 15. h3 Nd7 16. e3 Rd6 17. Be7 Rd2 18. Rfd1 Rxd1+ 19. Rxd1 Nxc5 20. Bxc5 {½-½ (42) Dreev,A (2662)-Libiszewski,F (2521) Trieste 2019}) 12... c6 {[%emt 0:01:31]} 13. Rxd4 {[%emt 0:06:13]} exd4 {[%emt 0:00:07]} 14. Rd1 {[%emt 0:01:07]} Be6 $146 {[%emt 0:20:53]} ({Predecessor:} 14... h6 15. Bxf6 Bxf6 16. Ne4 Bg7 17. Nc5 Rb8 18. b4 b6 19. Nb3 {0-1 (38) Risso,F (1713)-Alvarez,L (2086) Rosario 2017}) 15. Bxf6 {[%emt 0:06:57]} Bxf6 {[%emt 0:05:40]} 16. Ne4 {[%emt 0:00:31]} Bg7 {[%emt 0:00:29]} 17. b3 {[%emt 0:00:14]} Rd8 {[%emt 0:01:14]} 18. Nc5 {[%emt 0:05:20]} Bc8 {[%emt 0:02:05]} 19. Bf3 {[%emt 0:03:00]} Bf8 {[%emt 0:05:12]} 20. Nd3 {[%emt 0:00:57]} Bf5 {[%emt 0:01:09]} 21. h4 {[%emt 0:03:55]} h5 {[%emt 0:02:53]} 22. b4 {[%emt 0:07:54]} Bxd3 {[%emt 0:28:35]} 23. Rxd3 {[%emt 0:00:13]} Bxb4 {[%emt 0:00:34]} 24. Rb3 {[%emt 0:00:13]} Bc5 {[%emt 0:00:10]} 25. Rxb7 {[%emt 0:01:14]} d3 {[%emt 0:00:06]} 26. e3 {[%emt 0:11:14]} d2 {[%emt 0:04:33]} 27. Bd1 {[%emt 0:00:20]} a5 {[%emt 0:02:56]} 28. Rb3 {[%emt 0:02:33]} a4 {[%emt 0:12:36]} 29. Rb1 {[%emt 0:01:43]} a3 {[%emt 0:08:34]} 30. Rb3 {[%emt 0:01:59]} Be7 {[%emt 0:00:23]} 31. Kf1 {[%emt 0:01:18]} Rd7 {[%emt 0:01:46]} 32. Ke2 {[%emt 0:00:57]} Kg7 {[%emt 0:00:18]} 33. Bc2 {[%emt 0:00:28]} f6 {[%emt 0:01:23]} 34. Rb6 {[%emt 0:05:37]} Bc5 {[%emt 0:00:34]} 35. Rxc6 {[%emt 0:01:31]} Bb4 {[%emt 0:00:09]} 36. Kd1 {[%emt 0:03:28]} Bc3 {[%emt 0:01:38]} 37. Rb6 {[%emt 0:05:58]} Rc7 {[%emt 0:00:48]} 38. Bb3 {[%emt 0:01:00]} Rc5 {[%emt 0:00:41]} 39. Kc2 {[%emt 0:08:15]} Ba5 {[%emt 0:00:05]} 40. Rb7+ {[%emt 0:03:55]} Kf8 {[%emt 0:00:52]} 41. Kd3 {[%emt 0:30:46]} g5 {[%emt 0:03:46]} 42. Bd1 {[%emt 0:00:00]} g4 {[%emt 0:01:21]} 43. Rb3 $18 {[%emt 0:00:00]} Rf5 {[%emt 0:02:46]} 44. Rxa3 {[%emt 0:00:00]} Ke7 {[%emt 0:00:55]} 45. Ke2 {[%emt 0:00:00]} Rc5 {[%emt 0:01:23]} 46. Rd3 {[%emt 0:00:00]} f5 {[%emt 0:04:38]} 47. Bb3 {[%emt 0:00:00]} Bb4 {[%emt 0:01:28]} 48. Rd5 {[%emt 0:00:00]} Rxd5 {[%emt 0:00:11]} 49. cxd5 {[%emt 0:00:00]} Kd6 {[%emt 0:00:30]} 50. Bc2 {[%emt 0:00:00]} Ke5 {[%emt 0:01:06]} 51. a4 {[%emt 0:00:00]} Kxd5 1-0

[Event "WYCC U18 Girls 2019"]
[Site "Mumbai"]
[Date "2019.10.06"]
[Round "6.3"]
[White "Sliwicka, Alicja"]
[Black "Kucharska, Honorata"]
[Result "1-0"]
[ECO "A46"]
[WhiteElo "2307"]
[BlackElo "2114"]
[Annotator "ChessBase"]
[PlyCount "111"]
[EventDate "2019.10.02"]
[EventType "swiss"]
[EventCountry "IND"]
[SourceTitle "playchess.com"]
[Source "ChessBase"]
[SourceQuality "1"]
[TimeControl "40/5400+30:1800+30"]

1. d4 {[%emt 0:00:00]} Nf6 {[%emt 0:00:00]} 2. Nf3 {[%emt 0:00:00]} d5 3. c4 {[%emt 0:00:16]} e6 {[%emt 0:01:20]} 4. Qc2 {[%emt 0:00:30]} Be7 {[%emt 0:00:33]} 5. g3 {[%emt 0:00:13]} O-O {[%emt 0:01:36]} 6. Bg2 {[%emt 0:00:10]} b6 {[%emt 0:04:44]} 7. cxd5 {[%emt 0:05:50]} exd5 {[%emt 0:01:42]} 8. Bf4 {[%emt 0:00:15]} Na6 {[%emt 0:03:21]} 9. Nbd2 {[%emt 0:14:45]} Nb4 {[%emt 0:06:56]} 10. Qb3 {[%emt 0:10:32]} Bf5 {[%emt 0:05:13]} 11. Rc1 {[%emt 0:10:46]} c5 {[%emt 0:03:27]} 12. a3 {[%emt 0:09:35]} Nc6 {[%emt 0:08:40]} 13. O-O {[%emt 0:01:27]} Ne4 {[%emt 0:05:45]} 14. Rfd1 {[%emt 0:06:31]} Na5 {[%emt 0:08:07]} 15. Qa2 {[%emt 0:03:17]} c4 {[%emt 0:02:05]} 16. b4 {[%emt 0:02:19]} cxb3 {[%emt 0:06:37]} 17. Nxb3 {[%emt 0:00:24]} Nc4 {[%emt 0:00:05]} 18. Nbd2 {[%emt 0:01:59]} b5 {[%emt 0:03:22]} 19. Ne5 {[%emt 0:04:37]} Nexd2 {[%emt 0:03:02]} 20. Bxd2 {[%emt 0:03:00]} Rc8 {[%emt 0:01:40]} 21. a4 {[%emt 0:00:53]} f6 {[%emt 0:02:16]} 22. Nd3 {[%emt 0:01:18]} a6 {[%emt 0:03:43]} 23. Nf4 {[%emt 0:00:46]} Be4 {[%emt 0:02:02]} 24. Ne6 {[%emt 0:01:16]} Qd6 {[%emt 0:01:20]} 25. Nxf8 {[%emt 0:00:12]} Bxg2 {[%emt 0:01:28]} 26. Kxg2 {[%emt 0:00:21]} Bxf8 {[%emt 0:00:24]} 27. axb5 {[%emt 0:00:59]} axb5 {[%emt 0:00:29]} 28. Rb1 {[%emt 0:00:52]} Qe6 29. Bb4 {[%emt 0:01:27]} Bxb4 {[%emt 0:05:53]} 30. Rxb4 {[%emt 0:00:07]} Qe8 {[%emt 0:00:22]} 31. Rb3 {[%emt 0:01:53]} f5 {[%emt 0:01:52]} 32. Rf3 {[%emt 0:01:37]} Ra8 {[%emt 0:02:33]} 33. Qc2 {[%emt 0:02:08]} g6 {[%emt 0:00:41]} 34. h4 {[%emt 0:01:32]} Rc8 {[%emt 0:02:23]} 35. Rb3 {[%emt 0:03:52]} Na5 {[%emt 0:03:29]} 36. Rc3 {[%emt 0:00:21]} Nc4 {[%emt 0:00:07]} 37. Rb1 {[%emt 0:01:56]} Ra8 {[%emt 0:00:19]} 38. Qd3 {[%emt 0:01:00]} Ra2 {[%emt 0:01:17]} 39. Qf3 {[%emt 0:02:07]} Qd7 {[%emt 0:00:48]} 40. Qf4 {[%emt 0:02:36]} Qe8 {[%emt 0:01:58]} 41. Rcb3 {[%emt 0:33:59]} Ra5 {[%emt 0:35:42]} 42. h5 {[%emt 0:00:00]} Qxe2 {[%emt 0:00:00]} 43. hxg6 {[%emt 0:00:00]} hxg6 {[%emt 0:00:00]} 44. Qb8+ {[%emt 0:00:00]} Kf7 {[%emt 0:00:00]} 45. Rxb5 {[%emt 0:00:00]} Rxb5 {[%emt 0:00:00]} 46. Qxb5 {[%emt 0:00:00]} Qe4+ {[%emt 0:00:00]} 47. Kg1 {[%emt 0:00:00]} Kg7 {[%emt 0:00:00]} 48. Qb8 {[%emt 0:00:00]} Nd6 {[%emt 0:00:00]} 49. Qc7+ {[%emt 0:00:00]} Kh6 {[%emt 0:00:00]} 50. Qc1+ {[%emt 0:00:00]} Kg7 {[%emt 0:00:00]} 51. Rb6 {[%emt 0:00:00]} Nc4 {[%emt 0:00:00]} 52. Rb7+ {[%emt 0:00:00]} Kf6 {[%emt 0:00:00]} 53. Qh6 {[%emt 0:00:00]} Qe8 {[%emt 0:00:59]} 54. Qh4+ {[%emt 0:00:00]} Ke6 {[%emt 0:00:10]} 55. Qg5 {[%emt 0:00:00]} Nd6 {[%emt 0:01:42]} 56. Rg7 {[%emt 0:00:19]} 1-0